bitfinex-derivatives/quotes_BTCF0:USTF0_20260107
["timestamp","ask_amount","ask_price","bid_price","bid_amount"]
[1767794208171,0.01559598,92123.0,92113.0,0.076327]
[1767794208373,0.01559598,92121.0,92113.0,0.076327]
[1767794208673,0.09957798,92122.0,92113.0,0.076327]
[1767794212972,0.01559598,92126.0,92113.0,0.076327]
[1767794216477,0.09957798,92127.0,92113.0,0.076327]
[1767794218070,0.09957798,92127.0,92117.0,0.010863]
[1767794218271,0.01559598,92128.0,92113.0,0.076327]
[1767794218472,0.01559598,92128.0,92116.0,0.010864]
[1767794218673,0.010861,92137.0,92116.0,0.010864]
[1767794219182,0.07434767,92140.0,92115.0,0.010864]
[1767794219480,0.010861,92134.0,92115.0,0.010864]
[1767794220179,0.11043898,92141.0,92121.0,0.010863]
[1767794220685,0.11043898,92141.0,92120.0,0.07434767]
[1767794220686,0.01747829,92138.0,92120.0,0.07434767]
[1767794220887,0.01747829,92137.0,92120.0,0.07434767]
[1767794221075,0.01747829,92137.0,92119.0,0.010863]
[1767794221586,0.11575639,92137.0,92119.0,0.010863]
[1767794221786,0.01788229,92136.0,92119.0,0.010863]
[1767794222285,0.01788229,92136.0,92117.0,0.010863]
[1767794222476,0.11285821,92136.0,92117.0,0.010863]
[1767794222684,0.01788229,92135.0,92117.0,0.010863]
[1767794223789,0.11285821,92135.0,92117.0,0.010863]
[1767794224087,0.01788229,92134.0,92117.0,0.010863]
[1767794224283,0.01788229,92134.0,92114.0,0.01524943]
[1767794224588,0.01788229,92137.0,92121.0,0.010863]
[1767794224782,0.11285821,92137.0,92120.0,0.07434767]
[1767794224975,0.01788229,92136.0,92120.0,0.07434767]
[1767794226282,0.01788229,92136.0,92121.0,0.010863]
[1767794226484,0.01788229,92143.0,92126.0,0.08520967]
[1767794226684,0.01788229,92143.0,92130.0,0.07434767]
[1767794226988,0.01788229,92143.0,92126.0,0.010862]
[1767794228177,0.01788229,92143.0,92124.0,0.09236]
[1767794228878,0.01788229,92142.0,92124.0,0.09236]
[1767794229189,0.01788229,92140.0,92124.0,0.09236]
[1767794230886,0.01788229,92140.0,92125.0,0.010862]
[1767794232788,0.01788229,92140.0,92124.0,0.09236]
[1767794233988,0.01788229,92140.0,92125.0,0.010862]
[1767794236690,0.01788229,92140.0,92124.0,0.09236]
[1767794244511,0.01788229,92140.0,92124.0,0.103222]
[1767794244901,0.01788229,92144.0,92124.0,0.103222]
[1767794245904,0.01788229,92144.0,92125.0,0.010862]
[1767794246606,0.01788229,92144.0,92127.0,0.010862]
[1767794246802,0.11024229,92149.0,92128.0,0.0286553]
[1767794247105,0.12110229,92149.0,92130.0,0.11668702]
[1767794247309,0.12110229,92149.0,92130.0,0.12754902]
[1767794247510,0.01788229,92148.0,92130.0,0.09889372]
[1767794247703,0.01788229,92148.0,92127.0,0.0286553]
[1767794248213,0.01788229,92148.0,92128.0,0.010862]
[1767794249407,0.01086,92147.0,92128.0,0.010862]
[1767794249610,0.02874229,92147.0,92128.0,0.010862]
[1767794251313,0.01788229,92147.0,92128.0,0.010862]
[1767794252315,0.01788229,92147.0,92127.0,0.0177933]
[1767794252316,0.02874229,92147.0,92127.0,0.0177933]
[1767794252615,0.01571279,92146.0,92127.0,0.0177933]
[1767794256118,0.01571279,92146.0,92127.0,0.0286553]
[1767794258420,0.01571279,92146.0,92128.0,0.010862]
[1767794261921,0.02657279,92146.0,92127.0,0.0177933]
[1767794262219,0.01571279,92143.0,92126.0,0.010862]
[1767794262425,0.09470977,92144.0,92126.0,0.010862]
[1767794262622,0.02673564,92146.0,92126.0,0.12325214]
[1767794263226,0.01571279,92145.0,92126.0,0.12325214]
[1767794265824,0.01571279,92145.0,92127.0,0.010862]
[1767794266531,0.01571279,92145.0,92126.0,0.11239014]
[1767794268125,0.01571279,92145.0,92127.0,0.01516726]
[1767794269134,0.01571279,92145.0,92127.0,0.02602926]
[1767794269833,0.01571279,92145.0,92127.0,0.010862]
[1767794271837,0.01571279,92137.0,92120.0,0.1804]
[1767794272129,0.01571279,92136.0,92121.0,0.09236]
[1767794272526,0.010861,92137.0,92121.0,0.09236]
[1767794272931,0.010861,92137.0,92118.0,0.01516726]
[1767794273126,0.11042256,92138.0,92119.0,0.103223]
[1767794273633,0.11042256,92138.0,92119.0,0.11839026]
[1767794274239,0.11042256,92138.0,92119.0,0.02603026]
[1767794274534,0.11042256,92138.0,92120.0,0.09236]
[1767794275633,0.11042256,92138.0,92119.0,0.12325314]
[1767794276038,0.11042256,92138.0,92120.0,0.09236]
[1767794277045,0.11042256,92138.0,92119.0,0.12325314]
[1767794277231,0.11042256,92138.0,92120.0,0.09236]
[1767794278439,0.12128356,92138.0,92119.0,0.11239014]
[1767794278639,0.01571279,92137.0,92120.0,0.09236]
[1767794279832,0.01571279,92137.0,92119.0,0.11239014]
[1767794280236,0.010861,92136.0,92120.0,0.09236]
[1767794280437,0.0256518,92130.0,92112.0,0.1804]
[1767794280747,0.010562,92130.0,92113.0,0.09236]
[1767794281339,0.10777157,92132.0,92112.0,0.01517259]
[1767794281533,0.010862,92131.0,92113.0,0.09236]
[1767794281733,0.10777157,92132.0,92113.0,0.09236]
[1767794281934,0.010861,92134.0,92114.0,0.10733699]
[1767794282433,0.00016285,92133.0,92114.0,0.10733699]
[1767794282634,0.00016285,92133.0,92115.0,0.09236]
[1767794283137,0.010862,92132.0,92115.0,0.09236]
[1767794283739,0.00016285,92133.0,92115.0,0.09236]
[1767794283938,0.00016285,92133.0,92116.0,0.09236]
[1767794284135,0.00016285,92133.0,92121.0,0.10733699]
[1767794284340,0.00016285,92133.0,92122.0,0.01518744]
[1767794288149,0.00016285,92133.0,92122.0,0.10733699]
[1767794292553,0.00016285,92133.0,92123.0,0.10733699]
[1767794292855,0.00016285,92133.0,92124.0,0.01518744]
[1767794293052,0.00016285,92133.0,92124.0,0.02605044]
[1767794293261,0.09236,92141.0,92124.0,0.11819999]
[1767794293451,0.09236,92141.0,92125.0,0.01518744]
[1767794294154,0.09236,92141.0,92126.0,0.010862]
[1767794294358,0.09236,92141.0,92119.0,0.00016285]
[1767794294359,0.10959704,92149.0,92130.0,0.01518744]
[1767794294556,0.01086,92147.0,92130.0,0.10733699]
[1767794294758,0.01086,92145.0,92130.0,0.09214955]
[1767794295253,0.01086,92145.0,92126.0,0.01518744]
[1767794295441,0.01086,92145.0,92126.0,0.10733699]
[1767794296844,0.01394037,92146.0,92126.0,0.10733699]
[1767794297548,0.01086,92144.0,92126.0,0.10733699]
[1767794299361,0.01086,92142.0,92126.0,0.10733699]
[1767794301955,0.01394037,92146.0,92126.0,0.10733699]
[1767794301956,0.01086,92144.0,92126.0,0.10733699]
[1767794302766,0.01086,92144.0,92127.0,0.01518744]
[1767794306170,0.02480037,92146.0,92127.0,0.11819899]
[1767794307272,0.01086,92145.0,92127.0,0.10733699]
[1767794307478,0.01086,92144.0,92127.0,0.10733699]
[1767794307669,0.01394037,92146.0,92127.0,0.10733699]
[1767794307869,0.01086,92143.0,92127.0,0.10733699]
[1767794308875,0.07432702,92140.0,92127.0,0.10733699]
[1767794310865,0.010861,92142.0,92127.0,0.10733699]
[1767794311173,0.07432702,92140.0,92127.0,0.10733699]
[1767794312062,0.01086,92144.0,92127.0,0.10733699]
[1767794312472,0.01086,92144.0,92128.0,0.01338965]
[1767794312975,0.01086,92147.0,92129.0,0.10575359]
[1767794313272,0.09236,92148.0,92129.0,0.10575359]
[1767794313273,0.01086,92145.0,92129.0,0.10575359]
[1767794314273,0.09236,92148.0,92129.0,0.10575359]
[1767794314674,0.01086,92145.0,92129.0,0.10575359]
[1767794315073,0.01086,92146.0,92129.0,0.10575359]
[1767794315273,0.01086,92146.0,92130.0,0.10575359]
[1767794315474,0.01086,92146.0,92132.0,0.09236394]
[1767794316172,0.01086,92144.0,92132.0,0.09236394]
[1767794317573,0.09236,92148.0,92132.0,0.09236394]
[1767794318276,0.01086,92144.0,92132.0,0.09236394]
[1767794319675,0.01086,92144.0,92127.0,0.10322594]
[1767794319874,0.01086,92144.0,83556.0,0.085]
[1767794319875,0.010862,92127.0,92109.0,0.09236]
[1767794320083,0.010863,92123.0,92109.0,0.09236]
[1767794320281,0.07432702,92120.0,92109.0,0.09236]
[1767794320578,0.07432702,92120.0,92106.0,0.09236]
[1767794321374,0.00012902,92119.0,92106.0,0.09236]
[1767794321779,0.00012902,92119.0,92106.0,0.10574965]
[1767794322578,0.00012902,92119.0,92107.0,0.01338965]
[1767794325582,0.00012902,92119.0,92107.0,0.41338965]
[1767794330576,0.00012902,92119.0,92107.0,0.10575359]
[1767794330777,0.00012902,92119.0,92108.0,0.01338965]
[1767794333888,0.01099202,92119.0,92108.0,0.00576965]
[1767794334583,0.01099202,92119.0,92107.0,0.07638359]
[1767794334891,0.010863,92117.0,92107.0,0.07638359]
[1767794335284,0.00012902,92119.0,92107.0,0.07638359]
[1767794335486,0.010863,92118.0,92107.0,0.07638359]
[1767794335790,0.010863,92118.0,92107.0,0.07311359]
[1767794336483,0.010864,92116.0,92107.0,0.08650324]
[1767794337184,0.010864,92116.0,92108.0,0.01338965]
[1767794337388,0.01243081,92114.0,92092.0,0.17501305]
[1767794337588,0.09561639,92112.0,92089.0,0.01338965]
[1767794337885,0.010865,92104.0,92092.0,0.09236394]
[1767794338091,0.010865,92102.0,92092.0,0.09236394]
[1767794338383,0.07432702,92102.0,92081.0,0.010868]
[1767794338583,0.010865,92100.0,92080.0,0.09236]
[1767794338790,0.010866,92099.0,92080.0,0.103228]
[1767794339089,0.08519202,92102.0,92082.0,0.010867]
[1767794339590,0.010865,92102.0,92082.0,0.010867]
[1767794339791,0.010865,92100.0,92080.0,0.16668702]
[1767794339993,0.010865,92100.0,92081.0,0.01338965]
[1767794340195,0.010865,92100.0,92082.0,0.01770628]
[1767794340493,0.010865,92100.0,92086.0,0.11123245]
[1767794340694,0.0001044,92103.0,92093.0,0.01770628]
[1767794340897,0.09236,92105.0,92095.0,0.11123245]
[1767794341591,0.103225,92105.0,92095.0,0.09352617]
[1767794341798,0.16761567,92120.0,92098.0,0.10682567]
[1767794341984,0.16761567,92120.0,92106.0,0.09012706]
[1767794341985,0.09236,92119.0,92106.0,0.09012706]
[1767794342298,0.09236,92124.0,92111.0,0.10682567]
[1767794342494,0.010863,92122.0,92112.0,0.10682567]
[1767794342687,0.010863,92122.0,92114.0,0.09012706]
[1767794342884,0.010863,92120.0,92114.0,0.09012706]
[1767794343488,0.010863,92120.0,92109.0,0.01669861]
[1767794344597,0.010863,92120.0,92109.0,0.10682567]
[1767794348993,0.010863,92123.0,92109.0,0.10682567]
[1767794349799,0.09236,92124.0,92109.0,0.10682567]
[1767794350000,0.010863,92121.0,92109.0,0.10682567]
[1767794350396,0.010863,92119.0,92109.0,0.09012706]
[1767794350603,0.010863,92119.0,92106.0,0.01669861]
[1767794350901,0.010863,92119.0,92106.0,0.10682567]
[1767794351903,0.010863,92117.0,92102.0,0.09236]
[1767794352088,0.010863,92117.0,92102.0,0.18248706]
[1767794352296,0.010863,92117.0,92103.0,0.09012706]
[1767794352588,0.010863,92117.0,92103.0,0.10682567]
[1767794353000,0.010863,92117.0,92103.0,0.09012706]
[1767794354202,0.010863,92117.0,92103.0,0.10682567]
[1767794355199,0.010863,92117.0,92103.0,0.09012706]
[1767794355794,0.010863,92119.0,92104.0,0.09012706]
[1767794355996,0.010863,92119.0,92109.0,0.10682567]
[1767794356406,0.09236,92124.0,92112.0,0.10682567]
[1767794356812,0.010863,92119.0,92112.0,0.09012706]
[1767794357395,0.09236,92124.0,92108.0,0.01669861]
[1767794358205,0.010863,92118.0,92108.0,0.01669861]
[1767794360608,0.010863,92121.0,92108.0,0.10682567]
[1767794360794,0.010863,92121.0,92108.0,0.09012706]
[1767794361000,0.09236,92124.0,92109.0,0.10682567]
[1767794361702,0.09236,92124.0,92111.0,0.09012706]
[1767794361898,0.010863,92120.0,92111.0,0.09012706]
[1767794367314,0.09236,92124.0,92111.0,0.09012706]
[1767794367528,0.09236,92124.0,92108.0,0.01669861]
[1767794368017,0.010864,92115.0,92102.0,0.09236]
[1767794368713,0.010863,92118.0,92103.0,0.10682567]
[1767794369022,0.09236,92124.0,92109.0,0.10682567]
[1767794369317,0.09236,92124.0,92109.0,0.09012706]
[1767794370117,0.09236,92124.0,92110.0,0.10682567]
[1767794370322,0.09236,92124.0,92112.0,0.09012706]
[1767794371022,0.010863,92120.0,92112.0,0.09012706]
[1767794374526,0.010863,92120.0,92112.0,0.10673392]
[1767794374715,0.09236,92124.0,92112.0,0.10673392]
[1767794375327,0.09236,92124.0,92112.0,0.09012706]
[1767794376127,0.010863,92120.0,92112.0,0.09012706]
[1767794376622,0.010863,92118.0,92112.0,0.09012706]
[1767794376927,0.010863,92118.0,92115.0,0.4]
[1767794377926,0.09236,92124.0,92115.0,0.4]
[1767794378422,0.010863,92121.0,92115.0,0.4]
[1767794379029,0.09236,92124.0,92115.0,0.4]
[1767794379228,0.010863,92120.0,92115.0,0.4]
[1767794379932,0.09236,92124.0,92115.0,0.4]
[1767794380433,0.010863,92123.0,92115.0,0.4]
[1767794380733,0.09236,92124.0,92115.0,0.4]
[1767794381032,0.010863,92121.0,92115.0,0.4]
[1767794381232,0.09236,92124.0,92115.0,0.4]
[1767794381535,0.010863,92120.0,92116.0,0.0944464]
[1767794382035,0.010863,92120.0,92115.0,0.4]
[1767794383750,0.09236,92124.0,92115.0,0.4]
[1767794384246,0.010863,92120.0,92115.0,0.4]
[1767794386446,0.010863,92122.0,92100.0,0.0944464]
[1767794386647,0.0158145,92120.0,92100.0,0.11958955]
[1767794386841,0.09794877,92123.0,92102.0,0.10872455]
[1767794387046,0.010863,92119.0,92107.0,0.0944464]
[1767794387451,0.010863,92117.0,92107.0,0.0944464]
[1767794388147,0.010863,92117.0,92109.0,0.0944464]
[1767794389458,0.010864,92115.0,92109.0,0.0944464]
[1767794390655,0.09236,92124.0,92109.0,0.0944464]
[1767794390955,0.010864,92115.0,92109.0,0.0944464]
[1767794393859,0.010863,92117.0,92109.0,0.0944464]
[1767794394544,0.09236,92124.0,92109.0,0.11105326]
[1767794394747,0.09236,92124.0,92112.0,0.11105326]
[1767794394953,0.09236,92124.0,92113.0,0.11105326]
[1767794396364,0.09236,92124.0,92113.0,0.0944464]
[1767794396659,0.010863,92119.0,92113.0,0.0944464]
[1767794400158,0.010863,92121.0,92113.0,0.0944464]
[1767794400363,0.010863,92121.0,92117.0,0.09644166]
[1767794400564,0.00016285,92125.0,92116.0,0.01308254]
[1767794400864,0.010863,92117.0,92116.0,5.4e-07]
[1767794401065,0.010864,92114.0,92101.0,0.010865]
[1767794401567,0.010864,92114.0,92099.0,0.010866]
[1767794401768,0.010864,92113.0,92099.0,0.4]
[1767794402059,0.010864,92113.0,92098.0,0.103226]
[1767794402460,0.010864,92113.0,92099.0,0.0957314]
[1767794402852,0.010863,92123.0,92110.0,0.00692869]
[1767794403054,0.00016285,92125.0,92111.0,0.00692869]
[1767794403354,0.010863,92120.0,92111.0,0.00692869]
[1767794404465,0.010863,92119.0,92111.0,0.00692869]
[1767794405464,0.010863,92118.0,92106.0,0.0065572]
[1767794406566,0.00016285,92125.0,92107.0,0.00638938]
[1767794406755,0.010863,92122.0,92110.0,0.00638938]
[1767794407970,0.010863,92120.0,92110.0,0.00638938]
[1767794409762,0.00016285,92125.0,92110.0,0.00638938]
[1767794410064,0.010863,92119.0,92110.0,0.00638938]
[1767794410270,0.010863,92121.0,92110.0,0.00638938]
[1767794410569,0.010863,92120.0,92110.0,0.00638938]
[1767794412967,0.010862,92129.0,92116.0,0.00568337]
[1767794413171,0.010862,92127.0,92116.0,0.00568337]
[1767794413367,0.010862,92126.0,92116.0,0.00568337]
[1767794413567,0.010863,92125.0,92116.0,0.00568337]
[1767794413770,0.010863,92125.0,92111.0,0.00547621]
[1767794414276,0.010863,92121.0,92111.0,0.00547621]
[1767794414870,0.010863,92120.0,92111.0,0.00547621]
[1767794415071,0.010863,92123.0,92111.0,0.00547621]
[1767794415776,0.010863,92121.0,92111.0,0.00547621]
[1767794417979,0.010863,92123.0,92111.0,0.00547621]
[1767794419470,0.010863,92121.0,92111.0,0.00547621]
[1767794419979,0.010863,92121.0,92110.0,0.07435601]
[1767794421874,0.010863,92121.0,92107.0,0.00457352]
[1767794422080,0.010863,92120.0,92110.0,0.07435601]
[1767794424879,0.010863,92120.0,92107.0,0.00457352]
[1767794425080,0.010863,92120.0,92110.0,0.07435601]
[1767794425272,0.010863,92123.0,92110.0,0.07435601]
[1767794425472,0.010863,92123.0,92110.0,0.07832984]
[1767794426783,0.010863,92122.0,92110.0,0.07832984]
[1767794427883,0.010863,92121.0,92110.0,0.07832984]
[1767794428384,0.010863,92119.0,92110.0,0.07832984]
[1767794428689,0.010864,92112.0,92106.0,0.00016285]
[1767794430374,0.010864,92114.0,92106.0,0.00016285]
[1767794430578,0.09986816,92120.0,92106.0,0.00016285]
[1767794431384,0.010864,92115.0,92106.0,0.00016285]
[1767794431585,0.010864,92114.0,92106.0,0.00016285]
[1767794431788,0.010864,92116.0,92106.0,0.00016285]
[1767794432287,0.09986816,92120.0,92106.0,0.00016285]
[1767794433178,0.010864,92115.0,92106.0,0.00016285]
[1767794433386,0.09986816,92120.0,92106.0,0.00016285]
[1767794433684,0.010864,92112.0,92106.0,0.00016285]
[1767794434088,0.010864,92115.0,92106.0,0.00016285]
[1767794434282,0.09986816,92120.0,92106.0,0.00016285]
[1767794435275,0.11910566,92120.0,92106.0,0.00016285]
[1767794435481,0.010864,92113.0,92106.0,0.00016285]
[1767794436487,0.010864,92115.0,92106.0,0.00016285]
[1767794437588,0.010863,92118.0,92106.0,0.00016285]
[1767794437887,0.11910566,92120.0,92106.0,0.00016285]
[1767794438088,0.010864,92114.0,92106.0,0.00016285]
[1767794439892,0.0192375,92119.0,92106.0,0.00016285]
[1767794440092,0.09098886,92118.0,92106.0,0.00016285]
[1767794440981,0.09098886,92118.0,92097.0,0.010866]
[1767794440982,0.09098886,92112.0,92091.0,0.00184217]
[1767794441187,0.09098886,92109.0,92092.0,0.09236]
[1767794441388,0.010865,92106.0,92092.0,0.103226]
[1767794441596,0.010865,92107.0,92092.0,0.010866]
[1767794441794,0.010865,92105.0,92093.0,0.09236]
[1767794442184,0.11022636,92098.0,92090.0,0.09236]
[1767794442389,0.12109236,92095.0,92083.0,0.05755]
[1767794442681,0.11022636,92090.0,92076.0,0.91862]
[1767794442886,0.11022636,92090.0,92080.0,0.09236]
[1767794443289,0.09098886,92090.0,92080.0,0.09236]
[1767794443698,0.09098886,92090.0,92071.0,0.00131977]
[1767794443699,0.10185586,92090.0,92071.0,0.00131977]
[1767794443888,0.11022636,92088.0,92072.0,0.09236]
[1767794444091,0.010867,92087.0,92072.0,0.09236]
[1767794444789,0.09098886,92088.0,92072.0,0.09236]
[1767794446299,0.10185586,92088.0,92072.0,0.09236]
[1767794447805,0.09098886,92087.0,92072.0,0.09236]
[1767794452312,0.010867,92086.0,92072.0,0.09236]
[1767794452505,0.11022636,92083.0,92072.0,0.04564841]
[1767794452808,0.11022636,92082.0,92072.0,0.04564841]
[1767794453009,0.09098886,92082.0,92072.0,0.04564841]
[1767794454502,0.09098886,92087.0,92072.0,0.04564841]
[1767794455312,0.09098886,92086.0,92072.0,0.04564841]
[1767794456400,0.11022636,92083.0,92072.0,0.04564841]
[1767794456603,0.09098886,92083.0,92072.0,0.04564841]
[1767794458111,0.11022636,92079.0,92069.0,0.0021723]
[1767794458310,0.12109436,92078.0,92064.0,0.0924]
[1767794458606,0.09098886,92078.0,92064.0,0.0924]
[1767794459701,0.11022636,92071.0,92059.0,0.03433758]
[1767794459995,0.11022636,92071.0,92051.0,0.00382087]
[1767794459996,0.11022636,92070.0,92052.0,0.010871]
[1767794460397,0.11022636,92070.0,92052.0,0.00989282]
[1767794460602,0.12039122,92069.0,92054.0,0.010871]
[1767794460800,0.12039122,92067.0,92050.0,0.0924]
[1767794461001,0.12039122,92066.0,92050.0,0.16675601]
[1767794461197,0.12039122,92066.0,92050.0,0.0924]
[1767794461397,0.00011041,92065.0,92050.0,0.0924]
[1767794461700,0.00011041,92065.0,92050.0,0.103271]
[1767794461909,0.11968875,92065.0,92050.0,0.0924]
[1767794462205,0.09869899,92063.0,92050.0,0.0924]
[1767794462407,0.11957834,92063.0,92050.0,0.0924]
[1767794462910,0.00011041,92065.0,92050.0,0.10787059]
[1767794463100,0.00011041,92065.0,92050.0,0.103271]
[1767794465009,0.00011041,92065.0,92050.0,0.0924]
[1767794465212,0.11957834,92063.0,92050.0,0.0924]
[1767794465909,0.09869899,92063.0,92050.0,0.0924]
[1767794468802,0.09869899,92063.0,92046.0,0.00347286]
[1767794470109,0.00011041,92065.0,92054.0,0.010871]
[1767794471013,0.0924,92074.0,92056.0,0.00303999]
[1767794471901,0.09869899,92074.0,92056.0,0.00303999]
[1767794472098,0.0924,92073.0,92056.0,0.00303999]
[1767794472312,0.0924,92073.0,92057.0,0.01087]
[1767794473010,0.02087935,92072.0,92054.0,0.010871]
[1767794473206,0.09523536,92070.0,92054.0,0.010871]
[1767794473606,0.02087935,92070.0,92054.0,0.010871]
[1767794474415,0.11957834,92069.0,92051.0,0.010871]
[1767794474607,0.09869899,92068.0,92051.0,0.010871]
[1767794474807,0.09869899,92068.0,92047.0,0.09815414]
[1767794474808,0.11957834,92064.0,92047.0,0.010872]
[1767794475024,0.11957834,92063.0,92047.0,0.010872]
[1767794476411,0.11957834,92063.0,92044.0,0.00224039]
[1767794476412,0.19393435,92060.0,92044.0,0.010872]
[1767794476711,0.0924,92073.0,92035.0,0.05]
[1767794476712,0.19393435,92054.0,92035.0,0.060873]
[1767794476907,0.09869899,92049.0,92036.0,0.0924]
[1767794477506,0.11957834,92054.0,92036.0,0.0924]
[1767794478008,0.02087935,92049.0,92035.0,0.05]
[1767794478210,0.11957834,92048.0,92035.0,0.05]
[1767794478416,0.11957834,92047.0,92035.0,0.05]
[1767794479207,0.21197834,92051.0,92035.0,0.05]
[1767794479415,0.11957834,92050.0,92035.0,0.05]
[1767794479722,0.11957834,92048.0,92035.0,0.05]
[1767794481906,0.11957834,92045.0,92035.0,0.05]
[1767794482508,0.11957834,92045.0,92022.0,0.09815414]
[1767794482509,0.010874,92029.0,92006.0,0.1804]
[1767794482704,0.02087935,92024.0,91997.0,0.02162142]
[1767794482907,0.11957834,92026.0,92005.0,0.02162142]
[1767794483110,0.11957834,92026.0,91994.0,0.1804]
[1767794483111,0.09869899,92032.0,92007.0,0.09815414]
[1767794483314,0.01087,92063.0,92019.0,0.010875]
[1767794483315,0.09869899,92039.0,92019.0,0.010875]
[1767794483512,0.02087935,92030.0,92016.0,0.010875]
[1767794483712,0.11957834,92026.0,92005.0,0.0924]
[1767794483912,0.11957834,92026.0,92014.0,0.010875]
[1767794483913,0.09869899,92026.0,92014.0,0.010875]
[1767794484108,0.09869899,92026.0,92006.0,0.09815414]
[1767794484314,0.11967482,92029.0,92012.0,0.010876]
[1767794485214,0.11967482,92029.0,92009.0,0.010876]
[1767794485519,0.11957834,92027.0,92008.0,0.02162142]
[1767794485921,0.09869899,92025.0,92006.0,0.010876]
[1767794486314,0.11957834,92025.0,92006.0,0.010876]
[1767794486919,0.11957834,92018.0,92005.0,0.0924]
[1767794487121,0.11969627,92017.0,92000.0,0.010877]
[1767794487312,0.11957834,92013.0,92000.0,0.010877]
[1767794487615,0.00011793,92017.0,91998.0,0.09244]
[1767794487616,0.11957834,92011.0,91998.0,0.09244]
[1767794487811,0.11957834,92009.0,91998.0,0.09244]
[1767794488013,0.09869899,92009.0,91998.0,0.09244]
[1767794488207,0.09869899,92015.0,91999.0,0.010877]
[1767794488419,0.11957834,92015.0,91999.0,0.010877]
[1767794488920,0.09869899,92013.0,91998.0,0.09244]
[1767794489111,0.02087935,92010.0,91993.0,1.5]
[1767794489318,0.09869899,92005.0,91994.0,0.010878]
[1767794489617,0.00011793,92004.0,91994.0,0.010878]
[1767794489808,0.00011793,92004.0,91996.0,0.010878]
[1767794490006,0.02087935,92014.0,91995.0,0.03249942]
[1767794490007,0.11957834,92014.0,91995.0,0.03249942]
[1767794490220,0.09869899,92012.0,91995.0,0.010878]
[1767794490414,0.09869899,92008.0,91995.0,0.010878]
[1767794490616,0.09869899,92006.0,91992.0,0.010878]
[1767794490818,0.09869899,92004.0,91992.0,0.010878]
[1767794491014,0.09869899,92010.0,91990.0,0.11406142]
[1767794491216,0.09869899,92010.0,91991.0,0.02162142]
[1767794491415,0.09869899,92010.0,91992.0,0.02162142]
[1767794491827,0.09869899,92010.0,91998.0,0.010877]
[1767794492029,0.09064695,92017.0,91998.0,0.02189109]
[1767794492517,0.18308695,92017.0,91998.0,0.02189109]
[1767794492916,0.18308695,92017.0,92001.0,0.010877]
[1767794493129,0.09064695,92016.0,92001.0,0.010877]
[1767794493723,0.09064695,92015.0,91998.0,0.010877]
[1767794494327,0.09064695,92014.0,91998.0,0.010877]
[1767794495328,0.09064695,92014.0,92000.0,0.010877]
[1767794495724,0.09064695,92014.0,92002.0,0.010877]
[1767794497318,0.09064695,92014.0,91999.0,0.010877]
[1767794497515,0.11360138,92014.0,91999.0,0.010877]
[1767794497716,0.18308695,92020.0,92001.0,0.02126769]
[1767794497917,0.09064695,92019.0,92003.0,0.010877]
[1767794498120,0.09064695,92018.0,92003.0,0.010877]
[1767794498315,0.11360138,92018.0,92003.0,0.010877]
[1767794498520,0.09064695,92016.0,92003.0,0.010877]
[1767794498715,0.11360138,92016.0,92003.0,0.010877]
[1767794498922,0.09064695,92015.0,92003.0,0.010877]
[1767794499124,0.09064695,92015.0,92009.0,0.00217371]
[1767794499327,0.11360138,92015.0,92009.0,0.00217371]
[1767794499536,0.09064695,92014.0,92009.0,0.00217371]
[1767794499732,0.09064695,92012.0,92009.0,0.00217371]
[1767794500132,0.09064695,92011.0,92009.0,0.00217371]
[1767794501635,0.09064695,92007.0,91991.0,0.02189109]
[1767794501838,0.02295443,92012.0,92000.0,0.010877]
[1767794502236,0.09064695,92013.0,92000.0,0.010877]
[1767794503631,0.09064695,92012.0,92000.0,0.010877]
[1767794504228,0.09064695,92006.0,91994.0,0.010878]
[1767794504436,0.09064695,92004.0,91990.0,0.09244]
[1767794504634,0.11360138,91992.0,91981.0,0.1804]
[1767794504935,0.09244,92020.0,91971.0,0.28981442]
[1767794504936,0.02295443,91988.0,91971.0,0.28981442]
[1767794505140,0.02295443,91988.0,91972.0,0.09248]
[1767794505432,0.02295443,91988.0,91978.0,0.01088]
[1767794505636,0.09064695,91989.0,91978.0,0.01088]
[1767794506223,0.09064695,91988.0,91978.0,0.01088]
[1767794506529,0.09064695,91988.0,91974.0,0.01088]
[1767794506732,0.11360138,91988.0,91974.0,0.01088]
[1767794506935,0.09064695,91981.0,91973.0,0.09248]
[1767794507134,0.11360138,91980.0,91968.0,0.00013851]
[1767794507531,0.11360138,91980.0,91968.0,0.01101951]
[1767794507926,0.09064695,91987.0,91971.0,0.010881]
[1767794508132,0.02295443,91984.0,91971.0,0.010881]
[1767794508333,0.11360138,91982.0,91968.0,0.00013851]
[1767794508733,0.11360138,91987.0,91968.0,0.00013851]
[1767794509139,0.09064695,91996.0,91974.0,0.01088]
[1767794509325,0.09064695,91992.0,91974.0,0.01088]
[1767794509537,0.09064695,91991.0,91972.0,0.02189109]
[1767794509839,0.11360138,91991.0,91972.0,0.02189109]
[1767794510239,0.09064695,91990.0,91972.0,0.03277109]
[1767794510641,0.11360138,91987.0,91972.0,0.01088]
[1767794510833,0.09064695,91985.0,91972.0,0.01088]
[1767794511236,0.11360138,91985.0,91972.0,0.01088]
[1767794511642,0.11360138,91985.0,91974.0,0.01088]
[1767794511833,0.09064695,91990.0,91977.0,0.01088]
[1767794512034,0.09064695,91990.0,91972.0,0.02189109]
[1767794512336,0.02295443,91996.0,91981.0,0.010879]
[1767794512535,0.09064695,91993.0,91981.0,0.010879]
[1767794512737,0.09064695,91989.0,91978.0,0.09248]
[1767794513043,0.09064695,91986.0,91978.0,0.09248]
[1767794513643,0.11360138,91983.0,91971.0,0.010881]
[1767794513845,0.09064695,91982.0,91972.0,0.09248]
[1767794514036,0.09064695,91980.0,91968.0,0.01101951]
[1767794514339,0.09064695,91980.0,91969.0,0.09248]
[1767794514538,0.09064695,91979.0,91969.0,0.09248]
[1767794514841,0.09064695,91978.0,91969.0,0.09248]
[1767794515041,0.09064695,91976.0,91969.0,0.09248]
[1767794515237,0.09064695,91972.0,91968.0,0.00013851]
[1767794515443,0.09064695,91972.0,91965.0,0.09248]
[1767794516330,0.00010765,91971.0,91965.0,0.09248]
[1767794516535,0.02295443,91979.0,91965.0,0.103361]
[1767794516730,0.09064695,91972.0,91962.0,0.09248]
[1767794516936,0.09064695,91966.0,91951.0,0.191283]
[1767794517137,0.02295443,91974.0,91963.0,0.010882]
[1767794517542,0.010879,91988.0,91963.0,0.010882]
[1767794517738,0.010879,91988.0,91965.0,0.010881]